bitfinex-derivatives/quotes_ETHF0:USTF0_20260113
["timestamp","ask_amount","ask_price","bid_price","bid_amount"]
[1768324131281,0.13720206,3186.6,3185.3,0.15704]
[1768324131690,0.13720206,3186.6,3185.3,0.16047639]
[1768324131986,0.13720206,3186.6,3185.4,0.15704]
[1768324133178,0.13720206,3187.0,3185.4,0.15704]
[1768324133488,0.39171456,3186.9,3185.4,0.15704]
[1768324133688,0.39171456,3186.8,3185.4,0.15704]
[1768324133890,0.13720206,3187.0,3185.5,0.15703]
[1768324134088,0.39171199,3186.9,3185.5,0.15703]
[1768324134287,0.13720206,3187.0,3185.5,0.15703]
[1768324134582,1.313,3186.9,3185.5,0.15703]
[1768324134786,0.13720206,3187.0,3185.6,0.15703]
[1768324134988,1.313,3187.0,3185.7,0.15702]
[1768324136381,0.13720206,3187.1,3185.7,0.15702]
[1768324136588,0.00274827,3187.2,3185.7,0.15702]
[1768324136589,0.13720206,3186.9,3185.7,0.15702]
[1768324136783,0.00471069,3186.7,3185.3,0.00343639]
[1768324137591,0.14191275,3186.7,3185.5,0.15703]
[1768324138402,0.14191275,3186.7,3185.3,0.00343639]
[1768324140489,0.00471069,3186.7,3185.5,1.5383693]
[1768324140889,0.00471069,3186.7,3185.6,0.15703]
[1768324143393,0.00471069,3186.7,3185.3,0.30330915]
[1768324143899,0.14191275,3186.7,3185.3,0.16047639]
[1768324145498,0.00471069,3186.7,3185.4,0.15704]
[1768324146405,0.00471069,3186.7,3185.5,0.15703]
[1768324147797,0.00471069,3186.7,3185.3,0.14443267]
[1768324147798,0.00471069,3186.7,3185.6,0.15703]
[1768324148707,0.00471069,3186.7,3185.7,0.15702]
[1768324149607,0.00471069,3186.7,3185.8,0.15702]
[1768324149807,0.00471069,3186.7,3185.8,0.29801628]
[1768324152806,0.00471069,3186.7,3185.4,0.14099628]
[1768324153002,0.00471069,3186.7,3185.3,0.16047639]
[1768324153198,0.1374277,3186.7,3185.3,0.16047639]
[1768324156904,0.13227804,3186.5,3185.3,0.00343639]
[1768324157111,0.13227804,3186.3,3184.4,4.08773101]
[1768324157410,4.9777272,3186.2,3184.5,0.13335782]
[1768324157707,1.312,3186.1,3184.7,0.13335782]
[1768324158211,1.312,3186.1,3184.7,0.13565993]
[1768324161411,1.312,3186.1,3184.7,0.00230211]
[1768324162813,1.44327804,3186.1,3184.7,0.00230211]
[1768324165114,0.13227804,3186.0,3184.7,0.00230211]
[1768324168715,0.13227804,3185.8,3184.7,0.00230211]
[1768324171314,4.453,3185.7,3184.7,0.00230211]
[1768324172009,0.13227804,3185.8,3184.7,0.00230211]
[1768324172206,1.311,3185.7,3184.7,0.00230211]
[1768324172506,0.13227804,3186.2,3184.7,0.00230211]
[1768324173115,1.311,3186.1,3184.7,0.00230211]
[1768324173313,1.311,3186.0,3184.7,0.00230211]
[1768324175920,0.14290476,3185.9,3184.7,0.00230211]
[1768324179822,0.14290476,3185.9,3184.1,0.1571]
[1768324180023,0.14290476,3185.7,3184.1,0.1571]
[1768324180512,1.46801,3186.0,3184.1,0.1571]
[1768324180513,0.14290476,3185.5,3184.1,0.1571]
[1768324180918,0.14290476,3185.5,3184.1,0.16093932]
[1768324183818,0.14290476,3185.3,3184.1,0.00383932]
[1768324184023,0.14290476,3185.1,3183.2,2.9491803]
[1768324184221,0.14290476,3184.9,3183.2,0.13362024]
[1768324184822,0.00471069,3184.5,3183.2,0.13362024]
[1768324185123,0.15116216,3184.5,3183.2,0.00245449]
[1768324185712,0.14290476,3184.3,3183.2,0.00245449]
[1768324187716,0.14290476,3184.2,3182.2,0.13362024]
[1768324188216,0.14290476,3184.0,3182.2,0.13362024]
[1768324188423,1.45790476,3183.9,3182.2,0.13362024]
[1768324188624,0.14290476,3183.8,3182.2,0.13362024]
[1768324188833,3.28490476,3183.8,3182.2,0.1362007]
[1768324190322,1.315,3183.7,3182.3,0.13362024]
[1768324191218,0.14290476,3184.2,3182.3,0.13362024]
[1768324191426,0.14290476,3184.2,3182.4,0.13362024]
[1768324191628,4.458,3184.1,3182.4,0.13362024]
[1768324194630,4.60090476,3184.1,3182.4,0.13362024]
[1768324194929,0.14290476,3184.0,3182.4,0.13362024]
[1768324196125,0.14290476,3184.0,3182.3,0.15719]
[1768324197728,0.14290476,3184.0,3182.2,0.00258046]
[1768324200329,0.14290476,3183.8,3182.2,0.00258046]
[1768324202826,0.14290476,3183.6,3182.2,0.00258046]
[1768324204035,0.14290476,3183.5,3182.2,0.00258046]
[1768324205426,0.30003476,3183.5,3182.2,0.00258046]
[1768324205835,0.13471238,3183.4,3182.2,0.00258046]
[1768324208435,0.13471238,3183.4,3181.3,0.13362024]
[1768324208436,0.13471238,3182.8,3180.6,0.15727]
[1768324208640,0.13471238,3182.7,3180.8,0.13705533]
[1768324208939,4.07,3182.6,3180.9,0.13705533]
[1768324209124,4.07,3182.6,3180.9,0.29431533]
[1768324209332,0.13471238,3183.2,3181.2,0.13705533]
[1768324209537,0.13471238,3183.2,3181.2,0.13943439]
[1768324209738,3.945,3183.1,3181.2,0.13943439]
[1768324209940,0.13471238,3183.0,3181.2,0.13943439]
[1768324210641,0.13471238,3183.0,3181.3,0.15724]
[1768324211034,0.13471238,3182.6,3181.2,0.00237906]
[1768324211230,0.13471238,3182.2,3180.0,0.1573]
[1768324211433,0.13471238,3182.0,3180.0,0.1573]
[1768324211633,0.13471238,3181.8,3180.0,0.1573]
[1768324212142,0.13724387,3181.8,3180.0,0.16063164]
[1768324214239,1.315,3181.7,3180.0,0.16063164]
[1768324214442,0.13471238,3181.6,3180.0,0.16063164]
[1768324215346,0.13471238,3181.6,3180.0,0.00333164]
[1768324216040,0.13288422,3181.1,3178.8,0.15736]
[1768324216246,0.13288422,3181.0,3178.9,0.14119343]
[1768324216634,4.46,3180.9,3179.1,0.14119343]
[1768324216846,1.315,3180.8,3179.2,0.14119343]
[1768324217049,0.13288422,3181.0,3179.2,0.14365802]
[1768324217250,0.216,3180.9,3179.2,0.14365802]
[1768324217946,0.46681747,3180.9,3179.2,0.14365802]
[1768324218149,0.13288422,3180.6,3179.2,0.00246459]
[1768324218445,4.46,3180.5,3179.2,0.00246459]
[1768324218640,0.25081747,3180.9,3179.2,0.00246459]
[1768324218858,0.13288422,3181.1,3179.2,0.00246459]
[1768324219148,4.46,3181.0,3179.2,0.14365802]
[1768324219542,0.38993679,3181.1,3179.6,1.68530135]
[1768324219543,0.25705257,3181.1,3179.6,1.68530135]
[1768324219750,1.315,3181.0,3179.6,1.68530135]
[1768324220446,3.146,3181.5,3179.7,0.14119343]
[1768324220745,4.461,3181.5,3180.0,1.68530135]
[1768324221138,0.13288422,3180.9,3179.2,0.15980459]
[1768324221335,1.315,3180.9,3179.3,0.14119343]
[1768324222034,1.315,3181.0,3179.3,0.14119343]
[1768324223337,0.13288422,3180.9,3179.3,0.14119343]
[1768324223651,0.13288422,3179.8,3177.8,1.54410792]
[1768324224541,0.13288422,3179.8,3178.2,1.27297991]
[1768324226051,0.13288422,3179.8,3178.2,1.11558991]
[1768324226553,1.315,3179.7,3178.2,1.11558991]
[1768324226755,1.44788422,3179.7,3178.2,1.11558991]
[1768324228047,0.13288422,3180.2,3178.3,0.15739]
[1768324228353,1.44788422,3180.2,3178.3,0.29858343]
[1768324228549,1.44788422,3180.2,3178.5,1.54410792]
[1768324228749,1.315,3180.4,3178.6,0.14119343]
[1768324229458,1.44788422,3180.4,3178.7,0.15737]
[1768324229659,0.13288422,3180.3,3178.7,0.15737]
[1768324230155,0.13288422,3180.2,3178.2,1.11558991]
[1768324232556,0.13288422,3179.8,3178.2,1.11558991]
[1768324232758,0.1573,3180.2,3178.2,1.11558991]
[1768324232759,0.13288422,3180.6,3178.5,0.15738]
[1768324233053,0.13288422,3180.4,3178.5,0.15738]
[1768324233255,0.13288422,3180.3,3178.5,0.15738]
[1768324234156,1.44788422,3180.3,3178.7,0.15737]
[1768324234362,0.13288422,3180.3,3178.9,0.15736]
[1768324234656,0.13288422,3180.8,3179.1,0.15735]
[1768324234857,1.315,3180.7,3179.1,0.15735]
[1768324235353,0.13288422,3180.8,3179.1,0.15735]
[1768324235551,1.315,3180.7,3179.1,0.15735]
[1768324236058,0.13852049,3179.7,3178.2,1.27297991]
[1768324237154,0.13852049,3179.7,3178.2,1.11558991]
[1768324238156,1.315,3179.6,3178.2,1.11558991]
[1768324238348,1.315,3179.5,3178.2,1.11558991]
[1768324238550,1.31815806,3179.5,3178.2,1.11558991]
[1768324238865,1.45667855,3179.5,3178.2,1.11558991]
[1768324239354,1.54410792,3179.0,3178.2,0.70828547]
[1768324239558,1.54410792,3179.0,3177.4,0.13952891]
[1768324240462,1.54410792,3179.0,3177.4,0.1418766]
[1768324241651,4.462,3178.9,3177.4,0.1418766]
[1768324241850,4.463,3178.8,3177.4,0.1418766]
[1768324242158,1.54726598,3179.5,3177.4,0.1418766]
[1768324242360,4.85330655,3179.4,3177.4,0.2993066]
[1768324242652,1.315,3179.4,3177.8,0.13952891]
[1768324242956,1.315,3179.4,3177.4,1.54645561]
[1768324242957,1.315,3179.4,3178.0,0.13952891]
[1768324243358,0.00315806,3179.5,3178.3,0.13952891]
[1768324243560,0.00315806,3179.5,3178.4,0.15738]
[1768324243756,0.00315806,3179.5,3178.5,0.13952891]
[1768324243955,0.00315806,3179.5,3178.7,0.13952891]
[1768324244261,1.54410792,3180.6,3178.9,0.13952891]
[1768324244262,0.176,3180.5,3178.9,0.13952891]
[1768324245063,0.17963416,3180.5,3178.9,0.13952891]
[1768324245258,1.31863416,3180.5,3178.9,0.13952891]
[1768324247364,1.54410792,3180.2,3178.9,0.13952891]
[1768324247567,1.54410792,3180.2,3178.2,0.13952891]
[1768324247862,1.54410792,3179.7,3178.2,0.13952891]
[1768324248363,0.39118658,3179.6,3178.2,0.13952891]
[1768324248664,1.314,3179.5,3178.2,0.13952891]
[1768324248964,1.314,3179.5,3177.6,0.13952891]
[1768324249666,4.462,3179.5,3177.6,0.13952891]
[1768324249967,4.462,3179.5,3177.6,0.29694891]
[1768324250175,4.462,3179.5,3177.7,0.13952891]
[1768324250561,1.54410792,3179.7,3178.0,0.13952891]
[1768324250765,1.314,3179.5,3178.0,0.13952891]
[1768324253064,1.314,3179.5,3178.1,0.13952891]
[1768324253364,1.314,3179.6,3178.2,0.13952891]
[1768324255169,1.93534686,3179.5,3177.6,0.13952891]
[1768324255474,0.39123012,3179.4,3177.6,0.13952891]
[1768324255666,1.54410792,3179.5,3177.6,0.13952891]
[1768324255867,0.3912182,3179.4,3177.6,0.13952891]
[1768324256063,1.54410792,3179.5,3177.6,0.13952891]
[1768324256064,1.54410792,3179.1,3177.6,0.13952891]
[1768324256271,1.70143792,3179.5,3177.6,0.13952891]
[1768324256471,1.70143792,3179.5,3177.4,0.00234769]
[1768324256472,1.54410792,3178.7,3177.4,0.00234769]
[1768324258764,1.54410792,3179.5,3177.6,0.13952891]
[1768324258970,3.5386863,3179.4,3177.6,0.29694891]
[1768324259168,3.148,3179.4,3177.9,0.13952891]
[1768324259366,3.148,3179.4,3178.1,0.29692891]
[1768324259767,3.148,3180.0,3178.3,0.13952891]
[1768324259967,3.148,3180.0,3178.4,0.13952891]
[1768324260569,0.39104034,3179.9,3178.4,0.13952891]
[1768324260771,3.148,3180.0,3178.4,0.13952891]
[1768324260970,1.54410792,3179.8,3178.4,0.13952891]
[1768324261768,1.54410792,3179.4,3177.9,0.29693891]
[1768324261968,1.54410792,3179.7,3178.1,0.13952891]
[1768324262170,3.148,3180.0,3178.2,0.13952891]
[1768324262372,1.70511408,3179.9,3178.3,0.13952891]
[1768324262571,1.314,3179.9,3178.3,0.13952891]
[1768324262872,0.00471846,3179.4,3178.3,0.13952891]
[1768324263882,0.00471846,3179.4,3177.4,0.00234769]
[1768324263883,0.00471846,3179.4,3177.7,0.13952891]
[1768324264173,0.00471846,3179.4,3177.9,0.13952891]
[1768324264470,0.00471846,3179.4,3178.1,0.13952891]
[1768324265175,0.00471846,3179.4,3178.1,0.29692891]
[1768324265377,0.00471846,3179.4,3178.2,0.14037402]
[1768324266172,1.54410792,3179.3,3177.6,0.14037402]
[1768324266471,0.39119146,3179.2,3177.7,0.29779402]
[1768324266671,1.54410792,3179.3,3177.8,0.14037402]
[1768324268073,0.00471846,3179.4,3177.8,0.14037402]
[1768324268773,1.31771846,3179.4,3178.0,0.14037402]
[1768324268980,0.00471846,3179.4,3178.1,0.14037402]
[1768324269173,0.00471846,3179.4,3178.2,0.29776402]
[1768324269476,0.00471846,3179.4,3177.4,0.00234769]
[1768324269477,0.00471846,3179.4,3177.7,0.14037402]
[1768324269682,0.00471846,3179.4,3177.8,0.14037402]
[1768324270282,1.54410792,3179.1,3177.8,0.14037402]
[1768324270674,0.39122212,3179.0,3177.8,0.14037402]
[1768324270875,1.54410792,3179.1,3177.8,0.14037402]
[1768324271182,0.39122297,3179.0,3177.8,0.14037402]
[1768324271381,1.54410792,3179.1,3177.4,0.00234769]
[1768324271773,0.39122487,3179.0,3177.4,0.00234769]
[1768324271983,1.54410792,3179.1,3177.4,0.00234769]
[1768324272182,0.39122487,3179.0,3177.4,0.00234769]
[1768324272383,1.54410792,3179.1,3177.4,0.00234769]
[1768324272584,0.39123055,3179.0,3177.4,0.00234769]
[1768324272878,1.54410792,3179.1,3177.4,0.00234769]
[1768324273180,1.54410792,3179.1,3177.4,0.14272171]
[1768324273683,1.54410792,3178.7,3177.4,0.14272171]
[1768324273884,1.54410792,3178.8,3177.4,0.14272171]
[1768324275582,1.313,3178.7,3177.4,0.14272171]
[1768324275883,3.148,3178.9,3177.6,0.13424503]
[1768324276076,3.148,3178.9,3177.4,0.00234769]
[1768324277182,0.39147523,3178.8,3177.4,0.00234769]
[1768324277389,3.148,3178.9,3177.4,0.13659272]
[1768324277584,0.39143895,3178.8,3177.4,0.13659272]
[1768324277782,1.313,3178.8,3177.4,0.13659272]
[1768324277983,0.16205846,3179.4,3177.6,0.13424503]
[1768324278184,1.313,3178.9,3177.6,0.13424503]
[1768324279086,0.3914656,3178.8,3177.6,0.13424503]
[1768324279283,1.313,3178.9,3177.6,0.13424503]
[1768324279591,1.313,3178.8,3177.6,0.13424503]
[1768324279781,3.149,3179.3,3177.6,0.13424503]
[1768324279983,1.313,3179.0,3177.6,0.13424503]
[1768324280287,0.00471846,3179.4,3177.7,0.13424503]
[1768324280477,1.70452623,3179.3,3177.7,0.13424503]
[1768324280679,0.39152623,3179.2,3177.7,0.13424503]
[1768324281685,0.00471846,3179.4,3177.9,0.15741]
[1768324282593,0.00471846,3179.4,3177.9,0.29165503]
[1768324282793,0.00471846,3179.4,3178.0,0.13424503]
[1768324283593,0.00471846,3179.4,3178.2,0.13424503]
[1768324284998,0.00471846,3179.4,3178.2,0.29163503]
[1768324285187,0.00471846,3179.4,3178.3,0.13424503]
[1768324289994,0.00471846,3179.4,3177.9,0.15741]
[1768324290196,0.00471846,3179.4,3177.9,0.29165503]
[1768324290399,0.00471846,3179.4,3178.0,0.13424503]
[1768324292998,1.31671846,3179.4,3178.0,0.13424503]
[1768324293911,1.31671846,3179.4,3178.1,0.13424503]
[1768324294299,0.00471846,3179.4,3178.1,0.13424503]
[1768324302002,1.312,3179.3,3178.1,0.13424503]
[1768324304103,0.39185898,3179.2,3177.4,0.00234769]
[1768324304299,0.39185898,3179.1,3177.5,0.13532618]
[1768324304499,0.39185898,3179.0,3177.5,0.13532618]
[1768324304708,0.39185898,3178.9,3177.5,0.13532618]
[1768324304902,3.148,3179.2,3177.5,0.13532618]
[1768324305102,0.39190263,3179.1,3177.5,0.13532618]
[1768324305305,1.70390263,3179.0,3177.5,0.13532618]
[1768324305506,1.312,3179.0,3177.6,0.13532618]
[1768324307209,0.39207211,3178.9,3177.6,0.13532618]
[1768324307507,1.312,3179.0,3177.6,0.13532618]
[1768324307707,0.39207194,3178.9,3177.6,0.13532618]
[1768324308012,1.312,3179.0,3177.6,0.13532618]
[1768324308709,1.311,3179.2,3177.7,0.13532618]
[1768324308919,0.39208034,3179.1,3177.7,0.13532618]
[1768324309202,1.75244056,3178.9,3177.4,0.00234769]
[1768324309408,0.39208034,3178.8,3177.4,0.13767387]
[1768324309605,0.39208034,3178.7,3177.4,0.13767387]
[1768324309810,0.39208034,3178.6,3177.4,0.13767387]
[1768324310110,0.39208034,3178.5,3177.4,0.13767387]
[1768324310308,0.15736,3179.1,3177.4,0.13767387]
[1768324310508,4.85083545,3179.0,3177.4,0.13767387]
[1768324310703,0.39183545,3178.9,3177.4,0.13767387]
[1768324311710,0.39183545,3178.9,3177.4,0.00234769]
[1768324314610,0.39183545,3178.9,3177.4,0.13767387]
[1768324314816,4.463,3178.8,3177.4,0.13767387]
[1768324315113,0.39183545,3178.7,3177.4,0.13767387]
[1768324315323,4.463,3178.8,3177.4,0.13767387]
[1768324315508,0.39158038,3178.7,3177.4,0.13767387]
[1768324315708,4.463,3178.8,3177.4,0.13767387]
[1768324316015,1.316,3178.7,3177.4,0.13767387]
[1768324316217,1.316,3178.6,3177.4,0.13767387]
[1768324318511,0.16205846,3179.4,3177.4,0.13767387]
[1768324318708,0.39162895,3179.3,3177.5,0.13532618]
[1768324318912,0.39162895,3179.3,3177.4,0.00234769]
[1768324318913,3.149,3179.2,3177.8,0.13532618]
[1768324319211,0.00471846,3179.4,3177.8,0.13532618]
[1768324319408,1.316,3179.1,3177.8,0.13532618]
[1768324319915,0.00471846,3179.4,3177.8,0.13532618]
[1768324320217,1.316,3179.3,3177.8,0.13532618]
[1768324320608,0.00471846,3179.4,3178.0,0.13532618]
[1768324321011,1.32071846,3179.4,3178.0,0.13532618]
[1768324321210,0.00471846,3179.4,3178.0,0.13532618]
[1768324322108,0.00471846,3179.4,3178.0,0.29272618]
[1768324322313,0.00471846,3179.4,3178.1,0.13532618]
[1768324322816,0.00471846,3179.4,3178.5,0.13532618]
[1768324323617,3.15263416,3180.5,3178.6,0.13532618]
[1768324323816,1.70675348,3180.4,3178.6,0.14004464]
[1768324324010,1.315,3180.4,3178.6,0.14004464]
[1768324324212,2.14399451,3180.3,3178.8,0.13532618]
[1768324324413,1.75244056,3180.3,3178.8,0.13532618]
[1768324324615,0.39153471,3180.2,3178.8,0.13532618]
[1768324324808,1.75244056,3180.3,3178.8,0.13532618]
[1768324325004,0.39153572,3180.2,3178.8,0.13532618]
[1768324325218,1.315,3180.1,3178.8,0.13532618]
[1768324326416,0.00363416,3180.5,3178.8,0.13532618]
[1768324326618,1.70631907,3180.4,3178.8,0.13532618]
[1768324326829,1.315,3180.4,3178.8,0.13532618]
[1768324328422,0.00363416,3180.5,3178.8,0.13532618]
[1768324328628,1.315,3180.4,3178.9,0.14540163]
[1768324332213,1.315,3180.3,3178.9,0.14540163]
[1768324334523,1.315,3180.3,3179.0,0.14540163]
[1768324336620,0.16091416,3180.5,3179.0,0.14540163]
[1768324336821,1.314,3180.4,3179.0,0.14540163]
[1768324340129,0.00363416,3180.5,3179.0,0.14540163]
[1768324340427,1.314,3180.4,3179.0,0.14540163]
[1768324341021,0.00363416,3180.5,3179.0,0.14540163]
[1768324341222,1.31763416,3180.5,3179.0,0.14540163]
[1768324342923,1.31763416,3180.5,3179.1,0.13547528]
[1768324343829,0.00363416,3180.5,3179.1,0.13547528]
[1768324345323,1.05604125,3180.3,3179.3,0.13547528]
[1768324346130,0.00363416,3180.5,3179.7,0.13547528]
[1768324346441,1.05604125,3180.7,3179.7,0.13547528]
[1768324347041,1.05604125,3180.5,3179.7,0.13547528]
[1768324347233,1.06008751,3180.5,3179.7,0.13912024]
[1768324348232,0.00404626,3180.5,3179.7,0.13912024]
[1768324348426,1.05604125,3180.8,3179.8,1.19151653]
[1768324349435,1.05972891,3180.8,3180.0,0.00471846]
[1768324350530,0.00368766,3180.8,3180.0,0.14019374]
[1768324350729,1.05604125,3181.2,3180.3,0.13547528]
[1768324350935,1.05604125,3180.8,3180.0,0.00471846]
[1768324351932,1.05604125,3180.6,3180.0,0.00471846]
[1768324352536,1.06011086,3180.8,3180.0,0.00471846]
[1768324352737,0.00406961,3180.8,3180.0,0.00471846]
[1768324353535,0.00406961,3180.8,3180.0,0.14019374]
[1768324358139,1.06011086,3180.8,3180.0,0.14019374]
[1768324358836,0.00406961,3180.8,3180.0,0.14019374]
[1768324361245,1.06011086,3180.8,3180.0,0.14019374]
[1768324361446,1.05604125,3180.2,3179.8,0.14464953]
[1768324361640,1.05604125,3180.6,3179.8,0.14464953]
[1768324362345,1.06011086,3180.8,3179.8,0.14464953]
[1768324363439,0.00406961,3180.8,3180.3,0.14464953]
[1768324364042,1.312,3181.4,3180.3,0.14464953]
[1768324364043,1.05604125,3181.3,3180.3,0.14464953]
[1768324364246,1.05604125,3181.1,3180.3,0.14464953]
[1768324365246,1.05941517,3181.1,3180.3,0.14464953]
[1768324365743,0.00337392,3181.1,3180.3,0.14464953]
[1768324366044,0.00337392,3181.1,3180.5,0.14464953]
[1768324366534,0.00809238,3181.1,3180.5,0.14464953]
[1768324367132,1.312,3181.9,3180.6,1.05604125]
[1768324367347,3.147,3182.6,3181.2,1.05604125]
[1768324367549,1.05604125,3182.2,3181.1,0.14464953]
[1768324367745,1.05604125,3182.0,3181.1,0.14464953]
[1768324367936,1.05604125,3182.2,3181.1,0.14464953]
[1768324368136,1.05604125,3182.0,3181.1,0.14464953]
[1768324369250,0.00315531,3182.2,3181.3,0.14464953]
[1768324370445,0.00315531,3182.2,3181.5,0.14464953]
[1768324371038,1.05604125,3182.1,3181.5,0.14464953]
[1768324371944,1.05919656,3182.2,3181.5,0.14464953]
[1768324372538,1.05604125,3182.0,3181.5,0.14464953]
[1768324372742,1.05604125,3182.0,3181.1,0.14464953]
[1768324375453,1.05919656,3182.2,3181.1,0.14464953]
[1768324376768,1.05604125,3182.0,3181.1,0.14464953]
[1768324379368,0.00315531,3182.2,3181.1,0.14464953]
[1768324379560,1.05604125,3182.1,3181.1,0.14464953]
[1768324379761,0.00315531,3182.2,3181.8,0.14464953]
[1768324379958,2.36704125,3183.0,3181.8,0.14464953]
[1768324380266,1.05604125,3182.8,3181.8,0.14464953]
[1768324380669,1.311,3183.0,3181.9,1.20069078]
[1768324380867,1.31429545,3183.0,3182.0,0.00471846]
[1768324381066,1.31429545,3183.0,3182.0,0.00755186]
[1768324381267,1.05604125,3182.5,3182.0,0.00755186]
[1768324382365,1.05604125,3182.3,3182.0,0.00755186]
[1768324382562,1.05604125,3182.1,3181.1,0.14464953]
[1768324382773,1.05604125,3182.0,3181.1,0.14464953]
[1768324383572,1.05604125,3182.1,3181.1,0.14747725]
[1768324384071,1.05604125,3181.7,3181.1,0.14747725]
[1768324384269,1.05604125,3181.7,3180.6,0.14464953]
[1768324385173,1.05604125,3181.7,3180.6,1.20069078]
[1768324385373,1.05604125,3181.8,3180.7,0.14095012]
[1768324386569,1.05604125,3182.0,3180.8,1.05604125]
[1768324386774,1.05604125,3182.0,3180.8,1.19699137]
[1768324387373,1.05604125,3181.8,3180.8,0.14095012]
[1768324390071,1.05604125,3181.6,3180.6,0.16115493]
[1768324393875,1.05604125,3181.4,3180.6,0.00388493]
[1768324394063,1.05604125,3181.2,3180.6,0.00388493]
[1768324394269,1.05604125,3181.4,3180.6,0.00388493]
[1768324394468,1.05604125,3181.0,3180.6,0.00388493]
[1768324394676,1.05604125,3181.0,3180.0,0.15731]
[1768324395670,1.05604125,3180.8,3180.0,0.00370278]
[1768324397472,1.311,3181.4,3180.1,1.05604125]
[1768324397681,1.05604125,3181.2,3180.1,1.05604125]
[1768324399274,1.311,3181.4,3180.0,0.00370278]
[1768324399776,1.311,3181.5,3180.0,0.00370278]
[1768324399971,2.36644568,3181.5,3180.0,0.00370278]
[1768324404182,1.05544568,3181.2,3180.0,0.00370278]
[1768324405586,0.15920593,3181.6,3180.0,0.14926547]
[1768324405784,2.36644568,3181.5,3180.0,0.14926547]
[1768324407686,1.311,3181.4,3180.0,0.14926547]
[1768324410981,1.311,3181.4,3180.0,0.00370278]
[1768324410982,1.05544568,3181.2,3180.0,0.00370278]
[1768324411183,1.05544568,3180.9,3180.0,0.00370278]
[1768324412990,1.05544568,3181.2,3180.0,0.00370278]
[1768324413397,1.05544568,3181.3,3180.0,0.00370278]
[1768324413588,0.39257417,3181.2,3180.0,0.00370278]
[1768324413788,1.05544568,3181.3,3180.0,0.00370278]
[1768324413985,0.39257658,3181.2,3180.0,0.00370278]
[1768324414186,1.05544568,3181.3,3180.0,0.00370278]
[1768324414388,1.05544568,3181.3,3179.7,0.15732]
[1768324414389,1.05544568,3181.0,3179.7,0.15732]
[1768324415395,1.05544568,3181.0,3179.7,0.15986746]
[1768324419695,1.05544568,3180.4,3179.7,0.00254746]
[1768324419896,1.05874586,3180.4,3179.7,0.00254746]
[1768324420096,0.00330018,3180.4,3179.7,0.00254746]
[1768324422892,0.00330018,3180.4,3179.7,0.14220024]
[1768324424297,0.00330018,3180.4,3179.7,0.00254746]
[1768324427602,1.05874586,3180.4,3179.7,0.00254746]
[1768324427802,1.05544568,3180.1,3178.9,0.13965278]
[1768324428001,0.00330018,3180.4,3178.9,0.13965278]
[1768324428204,1.31,3181.3,3180.1,0.13965278]
[1768324428396,0.39312083,3181.2,3180.1,0.13965278]
[1768324428711,0.00471846,3181.0,3180.1,0.13965278]
[1768324429093,0.00471846,3181.0,3180.1,0.30038661]
[1768324429094,0.00723619,3181.0,3180.1,0.30038661]
[1768324429404,2.26544568,3181.7,3180.2,0.14437124]
[1768324429702,0.39300121,3181.6,3180.2,0.14437124]
[1768324429895,0.39299939,3181.5,3180.2,0.14437124]
[1768324430098,2.26544568,3181.7,3180.2,0.14437124]
[1768324430294,0.3930013,3181.6,3180.2,0.14437124]
[1768324430503,0.3930013,3181.5,3180.2,0.14437124]
[1768324430702,2.36927981,3181.7,3180.2,0.14437124]
[1768324431004,0.3929509,3181.6,3180.2,0.14437124]
[1768324431196,0.3929509,3181.5,3180.2,0.14437124]
[1768324431393,1.05544568,3181.4,3180.2,0.14437124]
[1768324431890,1.05544568,3181.4,3180.2,0.00471846]
[1768324432093,1.31,3181.3,3180.2,0.00471846]
[1768324438700,1.05544568,3181.4,3180.2,0.00471846]
[1768324438900,1.309,3181.3,3180.2,0.00471846]
[1768324439100,1.309,3181.3,3180.2,0.14437124]
[1768324439514,1.05544568,3181.6,3180.2,0.14437124]
[1768324439813,1.309,3181.5,3180.2,0.14437124]
[1768324441514,2.36444568,3181.5,3180.2,0.14437124]
[1768324441709,1.05544568,3181.2,3180.2,0.14437124]
[1768324442805,2.36444568,3181.5,3180.2,0.14437124]
[1768324444114,1.309,3181.4,3180.2,0.14437124]
[1768324444312,0.00383413,3181.7,3180.2,0.30167124]
[1768324444514,1.70162594,3181.6,3180.3,0.13965278]
[1768324444720,0.39262594,3181.5,3180.3,0.13965278]
[1768324445016,0.39262594,3181.4,3180.4,0.13666292]
[1768324445316,2.36827981,3181.7,3180.4,0.13666292]
[1768324445617,0.39258173,3181.6,3180.4,0.13666292]
[1768324445817,0.39258173,3181.5,3180.4,0.13666292]
[1768324446017,0.39258173,3181.4,3180.4,0.13666292]
[1768324446317,2.36827981,3181.7,3180.4,0.13666292]
[1768324446614,0.39256249,3181.6,3180.4,0.13666292]
[1768324446820,0.39256249,3181.5,3180.4,0.13666292]
[1768324447007,0.39256249,3181.4,3180.4,0.13666292]
[1768324447201,2.36827981,3181.7,3180.4,0.13666292]
[1768324447401,0.39255802,3181.6,3180.4,0.13666292]
[1768324447602,0.39255802,3181.5,3180.4,0.13666292]
[1768324447814,0.39255802,3181.4,3180.4,0.13666292]
[1768324448113,2.36827981,3181.7,3180.4,0.13666292]
[1768324448313,0.39255016,3181.6,3180.4,0.13666292]
[1768324448515,0.39255016,3181.5,3180.4,0.13666292]
[1768324448715,0.39255016,3181.4,3180.4,0.13666292]
[1768324448903,2.36827981,3181.7,3180.4,0.13666292]
[1768324449107,0.39254252,3181.6,3180.4,0.13666292]
[1768324449403,0.39254252,3181.5,3180.4,0.13666292]
[1768324449602,2.36827981,3181.7,3180.4,0.13666292]
[1768324449603,0.39254252,3181.4,3180.4,0.13666292]
[1768324449817,1.309,3181.5,3180.4,0.13666292]
[1768324451221,0.3925801,3181.4,3180.4,0.13666292]
[1768324451624,1.309,3181.5,3180.4,0.13666292]
[1768324452122,0.39264008,3181.4,3180.4,0.13666292]
[1768324452420,0.39272001,3181.3,3180.4,0.13666292]
[1768324452623,1.309,3181.5,3180.4,0.13666292]
[1768324452818,0.39272126,3181.4,3180.4,0.13666292]
[1768324453021,0.39272126,3181.3,3180.4,0.13666292]
[1768324453317,1.309,3181.5,3180.4,0.13666292]
[1768324453521,0.39277066,3181.4,3180.4,0.13666292]
[1768324453724,0.39277066,3181.3,3180.4,0.13666292]
[1768324454024,1.309,3181.5,3180.4,0.13666292]
[1768324454224,0.39277032,3181.4,3180.4,0.13666292]
[1768324454521,1.309,3181.5,3180.4,0.13666292]
[1768324455328,1.308,3181.5,3180.4,0.13666292]
[1768324458634,0.00383413,3181.7,3180.5,0.15728]
[1768324458835,0.00383413,3181.7,3180.7,0.13326688]
[1768324459638,0.00383413,3181.7,3180.6,0.15728]
[1768324460032,0.00383413,3181.7,3180.6,0.29054688]
[1768324460338,0.00383413,3181.7,3180.7,0.13326688]
[1768324461427,1.05517026,3181.6,3180.7,0.13326688]